bitfinex/quotes_SOLUSD_20250630
["timestamp","ask_amount","ask_price","bid_price","bid_amount"]
[1751313125833,11.88412535,157.58,157.57,6.92]
[1751313126027,5.53814236,157.58,157.57,6.92]
[1751313126230,6.34574278,157.59,157.57,6.92]
[1751313126431,5.53814236,157.59,157.57,6.92]
[1751313127125,6.34525573,157.6,157.57,6.92]
[1751313127126,5.53814236,157.58,157.57,6.92]
[1751313127437,5.53814236,157.58,157.56,0.2]
[1751313127641,5.53814236,157.57,157.56,0.2]
[1751313128112,11.88452809,157.57,157.56,0.2]
[1751313130828,15.86047893,157.63,157.56,0.2]
[1751313131138,5.53814236,157.6,157.56,0.2]
[1751313131514,11.88335735,157.6,157.56,0.2]
[1751313131709,5.53814236,157.6,157.56,6.54673142]
[1751313131923,5.53814236,157.6,157.56,0.2]
[1751313132510,11.88341856,157.6,157.56,0.2]
[1751313133141,6.34598299,157.58,157.56,0.2]
[1751313133338,5.53814236,157.57,157.56,0.2]
[1751313135528,11.88452809,157.57,157.56,0.2]
[1751313140235,24.99603459,157.57,157.56,0.2]
[1751313140435,30.53417695,157.57,157.56,0.2]
[1751313141227,56.81417695,157.57,157.56,0.2]
[1751313143650,56.81417695,157.57,157.56,0.5814]
[1751313148251,56.95633852,157.57,157.56,0.5814]
[1751313150661,56.81417695,157.57,157.56,0.5814]
[1751313150837,6.34638573,157.57,157.56,0.5814]
[1751313151153,11.88452809,157.57,157.56,0.5814]
[1751313152656,6.34638573,157.57,157.56,0.5814]
[1751313152834,11.88452809,157.57,157.56,0.5814]
[1751313155935,5.53814236,157.58,157.56,0.5814]
[1751313156335,5.53814236,157.59,157.56,0.5814]
[1751313157446,5.53814236,157.58,157.56,0.5814]
[1751313158157,6.34600176,157.58,157.56,0.5814]
[1751313159745,11.88414412,157.58,157.56,0.5814]
[1751313159946,5.53814236,157.57,157.56,0.5814]
[1751313160147,11.88414412,157.58,157.56,0.5814]
[1751313160339,11.88386104,157.59,157.56,0.5814]
[1751313160772,5.53814236,157.57,157.56,0.5814]
[1751313161142,5.53814236,157.58,157.56,0.5814]
[1751313162041,11.88439878,157.58,157.56,0.5814]
[1751313163146,5.53814236,157.57,157.56,0.5814]
[1751313163553,24.18779122,157.57,157.56,0.5814]
[1751313164166,30.53417695,157.57,157.56,0.5814]
[1751313164345,11.88452809,157.57,157.56,0.5814]
[1751313165444,6.34638573,157.57,157.56,0.5814]
[1751313165639,11.88452809,157.57,157.56,0.5814]
[1751313167048,6.34638573,157.57,157.56,0.5814]
[1751313167371,11.88452809,157.57,157.56,0.5814]
[1751313167972,5.53814236,157.57,157.56,0.5814]
[1751313168158,11.88452809,157.57,157.56,0.5814]
[1751313170082,6.34638573,157.57,157.56,0.5814]
[1751313170286,30.53417695,157.57,157.56,0.5814]
[1751313171783,30.67633852,157.57,157.56,0.5814]
[1751313171987,32.23043852,157.57,157.56,0.5814]
[1751313172173,32.51476166,157.57,157.56,0.5814]
[1751313172478,26.42648471,157.55,157.54,0.2]
[1751313172680,52.3,157.55,157.54,0.2]
[1751313172889,57.83814236,157.55,157.54,0.2]
[1751313173083,76.48779122,157.55,157.54,0.2]
[1751313173258,76.91427593,157.55,157.54,0.2]
[1751313174275,83.26146729,157.55,157.54,0.2]
[1751313175683,56.96146729,157.55,157.54,0.2]
[1751313175986,6.34719136,157.55,157.54,0.2]
[1751313176277,11.88533372,157.55,157.54,0.2]
[1751313176979,6.34719136,157.55,157.54,0.2]
[1751313177183,11.88533372,157.55,157.54,0.2]
[1751313179281,6.34719136,157.55,157.54,0.2]
[1751313179463,11.88533372,157.55,157.54,0.2]
[1751313180168,6.34719136,157.55,157.54,0.2]
[1751313180480,11.88533372,157.55,157.54,0.2]
[1751313181560,42.35885379,157.59,157.54,0.2]
[1751313181763,42.21669222,157.59,157.55,5.53814236]
[1751313181971,48.56243451,157.59,157.56,5.53814236]
[1751313182176,48.56243451,157.59,157.55,5.53814236]
[1751313182376,48.56243451,157.59,157.54,6.16084236]
[1751313182377,54.10057687,157.59,157.54,6.16084236]
[1751313182578,48.56243451,157.59,157.55,5.53814236]
[1751313183085,54.10057687,157.59,157.55,5.53814236]
[1751313183278,42.21669222,157.59,157.55,5.53814236]
[1751313183483,11.88345796,157.6,157.55,5.53814236]
[1751313183980,11.88345796,157.6,157.54,6.97026345]
[1751313184182,11.88345796,157.6,157.55,5.53814236]
[1751313185293,6.3453156,157.6,157.56,5.53814236]
[1751313185476,11.88345796,157.6,157.55,5.53814236]
[1751313188189,5.53814236,157.59,157.55,5.53814236]
[1751313188392,11.88345796,157.6,157.56,5.53814236]
[1751313188586,5.53814236,157.59,157.55,5.53814236]
[1751313188771,5.53814236,157.59,157.54,6.16084236]
[1751313189090,190.84964886,157.62,157.56,5.53814236]
[1751313189285,0.14216157,157.64,157.54,12.78253115]
[1751313189286,18.64964886,157.64,157.54,12.78253115]
[1751313189487,6.34316523,157.65,157.6,5.53814236]
[1751313189675,11.88130759,157.65,157.6,5.53814236]
[1751313190093,6.34316523,157.65,157.57,0.42648471]
[1751313190397,11.88090526,157.66,157.61,5.53814236]
[1751313191188,5.53814236,157.65,157.59,0.28432314]
[1751313191396,5.53814236,157.64,157.57,6.63070408]
[1751313191600,5.53814236,157.63,157.59,5.53814236]
[1751313191893,5.53814236,157.63,157.58,5.53814236]
[1751313192093,5.53814236,157.64,157.59,5.53814236]
[1751313192287,5.53814236,157.63,157.57,6.98]
[1751313192491,5.53814236,157.62,157.57,12.51814236]
[1751313193394,11.88290456,157.62,157.57,12.51814236]
[1751313193897,6.3447622,157.62,157.58,5.53814236]
[1751313194296,5.53814236,157.6,157.57,6.98]
[1751313194496,11.88290456,157.62,157.57,12.51814236]
[1751313195291,11.88290456,157.62,157.57,18.86451878]
[1751313195483,11.88290456,157.62,157.57,44.86451878]
[1751313195883,6.3447622,157.62,157.58,5.53814236]
[1751313196091,5.53814236,157.64,157.59,5.53814236]
[1751313196402,11.88130759,157.65,157.6,5.53814236]
[1751313197801,5.53814236,157.64,157.6,5.53814236]
[1751313198293,5.53814236,157.63,157.58,5.53814236]
[1751313198477,5.53814236,157.62,157.57,44.86435751]
[1751313198673,5.53814236,157.61,157.57,38.51814236]
[1751313198880,5.53814236,157.61,157.57,6.98]
[1751313199193,5.53814236,157.61,157.57,12.51814236]
[1751313199394,22.20107832,157.65,157.57,18.86448917]
[1751313199596,5.53814236,157.62,157.58,5.53814236]
[1751313199989,5.53814236,157.63,157.58,5.53814236]
[1751313200287,6.34316523,157.65,157.6,5.53814236]
[1751313200600,6.34316523,157.65,157.59,0.28432314]
[1751313200775,11.88130759,157.65,157.6,5.53814236]
[1751313201186,6.34316523,157.65,157.61,5.53814236]
[1751313201387,5.53814236,157.66,157.61,5.53814236]
[1751313201388,152.30466064,157.67,157.63,5.53814236]
[1751313201606,17.98533349,157.67,157.63,5.53814236]
[1751313201900,17.98533349,157.67,157.61,6.89442314]
[1751313201901,5.53814236,157.65,157.61,6.6101]
[1751313202104,5.53814236,157.65,157.6,33.14874236]
[1751313202307,28.30309269,157.67,157.6,33.14874236]
[1751313202516,5.53814236,157.64,157.6,27.6106]
[1751313202999,5.53814236,157.64,157.6,1.6106]
[1751313203693,6.34397005,157.63,157.6,1.6106]
[1751313203895,11.88211241,157.63,157.6,1.6106]
[1751313205507,11.88211241,157.63,157.6,2.0333]
[1751313206311,6.34397005,157.63,157.6,2.0333]
[1751313206801,11.88211241,157.63,157.6,2.0333]
[1751313210113,6.34397005,157.63,157.6,2.0333]
[1751313210311,5.53814236,157.66,157.61,5.53814236]
[1751313210510,11.642803,157.67,157.62,5.53814236]
[1751313210814,12.44718207,157.67,157.63,5.53814236]
[1751313211123,6.10466064,157.67,157.63,5.53814236]
[1751313211303,6.10466064,157.67,157.62,6.6471]
[1751313211508,6.10466064,157.67,157.65,5.53814236]
[1751313211815,6.10466064,157.67,157.66,5.53814236]
[1751313212703,6.10466064,157.67,157.65,32.96]
[1751313212912,6.10466064,157.67,157.65,6.96]
[1751313213209,6.34250278,157.67,157.65,6.96]
[1751313213925,11.88064514,157.67,157.65,6.96]
[1751313214119,5.53814236,157.66,157.65,6.96]
[1751313215196,11.88090526,157.66,157.65,6.96]
[1751313215518,6.34250852,157.67,157.65,6.96]
[1751313216218,11.88065088,157.67,157.65,6.96]
[1751313217921,6.34195839,157.68,157.65,6.96]
[1751313218123,5.53814236,157.67,157.65,6.96]
[1751313218925,5.53814236,157.66,157.65,6.96]
[1751313219221,11.88090526,157.66,157.65,6.96]
[1751313220803,72.68746138,157.66,157.6,1.6106]
[1751313221000,5.53814236,157.61,157.58,13.2915]
[1751313221204,11.88296198,157.61,157.58,13.2915]
[1751313222722,5.53814236,157.61,157.58,13.2915]
[1751313222903,11.88296499,157.61,157.58,13.2915]
[1751313223498,24.99281409,157.65,157.58,13.2915]
[1751313223701,5.53814236,157.62,157.58,13.2915]
[1751313224217,6.34316523,157.65,157.59,5.53814236]
[1751313224418,5.53814236,157.64,157.59,5.53814236]
[1751313224820,5.53814236,157.64,157.59,11.88335149]
[1751313225117,11.88130759,157.65,157.61,5.53814236]
[1751313225330,5.53814236,157.65,157.61,5.53814236]
[1751313225623,11.88139172,157.65,157.61,5.53814236]
[1751313225805,5.53814236,157.67,157.62,5.53814236]
[1751313226007,5.53814236,157.67,157.63,5.53814236]
[1751313226412,18.21998111,157.69,157.64,5.53814236]
[1751313228135,6.34011925,157.69,157.66,5.53814236]
[1751313228911,6.34011925,157.69,157.64,12.81990954]
[1751313229110,11.87826161,157.69,157.64,18.3580519]
[1751313229411,6.34011925,157.69,157.65,5.53814236]
[1751313230310,6.34011925,157.69,157.68,5.53814236]
[1751313231607,6.34011925,157.69,157.68,5.96084236]
[1751313233828,6.34011925,157.69,157.68,0.4227]
[1751313234020,6.34011925,157.69,157.68,5.96084236]
[1751313234749,6.34011925,157.69,157.68,12.30280075]
[1751313237533,6.34011925,157.69,157.68,0.4227]
[1751313238436,6.34011925,157.69,157.68,26.4227]
[1751313240739,6.34011925,157.69,157.68,31.96084236]
[1751313240961,6.34011925,157.69,157.68,38.58712389]
[1751313242040,0.1,157.69,157.68,57.37893432]
[1751313242333,0.1,157.69,157.68,33.04898153]
[1751313244556,0.1,157.74,157.73,26.0]
[1751313244853,0.1,157.77,157.74,0.28432314]
[1751313245061,0.1,157.77,157.75,6.92]
[1751313245220,0.1,157.77,157.75,12.45814236]
[1751313245719,0.1,157.77,157.76,6.33874239]
[1751313245947,0.1,157.77,157.76,38.30336946]
[1751313246150,0.1,157.77,157.76,56.95301832]
[1751313247025,0.1,157.77,157.76,31.58689255]
[1751313247227,0.1,157.81,157.79,26.0]
[1751313247442,0.1,157.81,157.79,31.53814236]
[1751313247858,0.1,157.81,157.8,6.33713561]
[1751313248421,0.1,157.81,157.8,5.53814236]
[1751313248721,0.1,157.81,157.79,31.53814236]
[1751313248938,5.53814236,157.8,157.76,6.92]
[1751313249715,14.52545803,157.8,157.76,6.92]
[1751313249937,8.18826305,157.8,157.76,6.92]
[1751313250337,0.1,157.81,157.79,34.18826305]
[1751313250626,0.1,157.81,157.8,8.18826305]
[1751313250941,0.1,157.81,157.8,8.47258619]
[1751313252740,0.1,157.81,157.8,14.8097218]
[1751313253529,0.1,157.81,157.8,15.2324218]
[1751313256739,0.1,157.81,157.8,0.4227]
[1751313257841,0.1,157.81,157.8,26.4227]
[1751313259330,0.1,157.81,157.8,14.94809866]
[1751313260035,0.1,157.81,157.8,0.4227]
[1751313261230,0.1,157.81,157.8,8.61096305]
[1751313261428,0.1,157.81,157.8,0.4227]
[1751313263338,0.1,157.81,157.8,14.94809866]
[1751313263761,0.1,157.84,157.8,41.2324218]
[1751313263966,0.1,157.84,157.82,8.18826305]
[1751313264258,0.1,157.84,157.83,8.18826305]
[1751313264635,0.1,157.84,157.83,6.33593106]
[1751313265044,0.1,157.84,157.81,14.80932023]
[1751313266153,0.1,157.84,157.8,32.7596984]
[1751313266358,8.28826305,157.84,157.8,32.7596984]
[1751313266841,8.28826305,157.84,157.8,32.3369984]
[1751313267042,0.1,157.84,157.8,40.52526145]
[1751313267655,0.1,157.84,157.81,8.18826305]
[1751313268247,0.1,157.84,157.8,32.3369984]
[1751313268563,0.1,157.84,157.8,40.52526145]
[1751313269862,5.62331128,157.84,157.8,37.86030968]
[1751313270056,5.52331128,157.83,157.8,26.0]
[1751313270258,0.1,157.84,157.8,32.33710977]
[1751313270466,0.1,157.84,157.81,5.52331128]
[1751313270643,0.1,157.84,157.82,5.52331128]
[1751313270969,0.1,157.84,157.82,11.85931593]
[1751313271270,0.1,157.84,157.82,6.33600465]
[1751313271454,0.1,157.84,157.82,11.85931593]
[1751313271653,0.1,157.84,157.82,6.33600465]
[1751313271857,0.1,157.84,157.83,26.0]
[1751313272172,0.1,157.84,157.81,11.8598803]
[1751313272467,0.1,157.84,157.83,31.80763442]
[1751313272680,6.2033,157.97,157.87,26.0]
[1751313272844,6.2033,157.97,157.91,6.33272117]
[1751313273047,5.52331128,157.97,157.92,1.6154]
[1751313273253,5.52331128,157.97,157.93,0.14216157]
[1751313273449,5.52331128,157.97,157.92,24.45728328]
[1751313273450,5.52331128,157.95,157.92,0.42648471]
[1751313273649,5.52331128,157.93,157.88,6.96]
[1751313273872,5.52331128,157.89,157.88,6.96]
[1751313274370,5.52331128,157.91,157.88,6.96]
[1751313274753,5.52331128,157.93,157.89,0.28432314]
[1751313275154,26.34,157.97,157.89,6.6178262]
[1751313275155,5.52331128,157.92,157.89,6.6178262]
[1751313275354,5.52331128,157.93,157.89,6.6178262]
[1751313275589,5.52331128,157.95,157.9,5.52331128]
[1751313275749,5.52331128,157.95,157.91,0.28432314]
[1751313275750,8.17211735,157.95,157.91,0.28432314]
[1751313275951,8.17211735,157.92,157.89,32.75620306]
[1751313276263,8.17211735,157.93,157.89,32.75620306]
[1751313276467,8.17211735,157.93,157.89,40.92832041]
[1751313277469,8.17211735,157.93,157.89,32.75620306]
[1751313277860,8.17211735,157.93,157.89,26.4227]
[1751313277861,8.17211735,157.92,157.89,26.4227]
[1751313278676,24.97996474,157.97,157.89,26.4227]
[1751313278852,8.17211735,157.93,157.89,26.4227]
[1751313279053,6.33031588,157.97,157.89,26.4227]
[1751313279292,8.17211735,157.92,157.89,26.4227]
[1751313279667,6.33031588,157.97,157.89,32.75608034]
[1751313279974,8.17211735,157.92,157.89,32.75608034]
[1751313280182,22.15610558,157.97,157.89,26.4227]
[1751313280391,8.17211735,157.9,157.89,0.4227]
[1751313281097,34.99388356,157.9,157.89,0.4227]
[1751313281253,34.99388356,157.9,157.79,8.2424]
[1751313281254,18.64964886,157.89,157.81,7.0]
[1751313281450,8.17211735,157.83,157.81,7.0]
[1751313281684,8.17211735,157.83,157.79,6.33738855]
[1751313281685,8.17211735,157.82,157.79,3.13019617]
[1751313281896,26.0,157.86,157.79,3.13019617]
[1751313281897,8.17211735,157.81,157.79,3.13019617]
[1751313282053,8.17211735,157.82,157.79,3.13019617]
[1751313282252,26.0,157.88,157.79,3.13019617]
[1751313282560,8.17211735,157.82,157.78,7.0]
[1751313282873,8.17211735,157.82,157.78,13.33787628]
[1751313283973,6.33596468,157.83,157.78,13.33787628]
[1751313284281,8.17211735,157.82,157.78,13.33787628]
[1751313284471,8.17211735,157.82,157.78,7.0]
[1751313284672,8.17211735,157.8,157.78,7.0]
[1751313286671,6.33512828,157.85,157.79,8.45644049]
[1751313286974,8.17211735,157.84,157.79,8.45644049]
[1751313287175,8.17211735,157.84,157.79,0.28432314]
[1751313287369,8.17211735,157.84,157.8,6.33713561]
[1751313287775,5.93552116,157.99,157.83,26.0]
[1751313287974,8.17211735,157.92,157.87,26.0]
[1751313288282,8.17211735,157.92,157.88,7.0]
[1751313288580,8.17211735,157.91,157.88,7.0]
[1751313288879,8.17211735,157.9,157.88,7.0]
[1751313290079,27.70196157,157.96,157.88,7.0]
[1751313290080,8.17211735,157.89,157.88,7.0]
[1751313290292,6.3319192,157.93,157.88,7.0]
[1751313290581,8.17211735,157.92,157.88,7.0]
[1751313291083,8.17211735,157.93,157.88,21.50598595]
[1751313291480,8.17211735,157.94,157.89,8.17211735]
[1751313291680,8.17211735,157.94,157.89,14.50537925]
[1751313291872,8.17211735,157.94,157.9,8.17211735]
[1751313292272,8.17211735,157.94,157.89,14.50537925]
[1751313292767,14.50367993,157.94,157.89,14.50537925]
[1751313293169,14.50367993,157.94,157.89,0.28432314]
[1751313293170,8.17211735,157.93,157.89,0.28432314]
[1751313293683,8.17211735,157.9,157.84,8.17211735]
[1751313293878,8.17211735,157.89,157.85,26.0]
[1751313294277,8.17211735,157.91,157.86,26.0]
[1751313294474,8.17211735,157.88,157.83,49.10535936]
[1751313294664,8.17211735,157.88,157.84,0.28432314]
[1751313294861,5.17211735,157.86,157.83,7.0]
[1751313295183,8.17211735,157.86,157.83,7.0]
[1751313295495,22.16319227,157.92,157.83,13.33583746]
[1751313295780,8.17211735,157.87,157.83,13.33583746]
[1751313296288,8.17211735,157.86,157.83,13.33583746]
[1751313297301,8.17211735,157.9,157.85,26.0]
[1751313297461,8.17211735,157.9,157.86,0.28432314]
[1751313297776,8.17211735,157.9,157.86,26.0]
[1751313297973,8.17211735,157.9,157.86,32.33470793]
[1751313298185,6.33279742,157.91,157.84,6.33537021]
[1751313298186,8.17211735,157.88,157.84,6.33537021]
[1751313300094,8.17211735,157.88,157.83,21.50790073]
[1751313300289,6.33362708,157.89,157.73,31.69783145]
[1751313300290,6.33362708,157.89,157.77,31.00942302]
[1751313300498,8.17211735,157.82,157.78,1.6324]
[1751313300692,8.17211735,157.8,157.77,3.09682389]
[1751313300889,8.17211735,157.79,157.76,13.33859765]
[1751313301283,8.17211735,157.78,157.76,13.33859765]
[1751313301488,8.17211735,157.78,157.76,7.0]
[1751313301697,8.17211735,157.8,157.76,13.33863947]
[1751313301893,6.33552965,157.84,157.76,13.33863947]
[1751313302099,8.17211735,157.8,157.76,13.33863947]
[1751313302295,8.17211735,157.8,157.76,21.51075682]
[1751313302499,8.17211735,157.8,157.76,13.33863947]
[1751313302683,6.33552965,157.84,157.76,13.33863947]
[1751313302879,8.17211735,157.83,157.79,0.28432314]
[1751313303189,6.33438825,157.87,157.79,0.42648471]
[1751313303396,152.53363345,157.89,157.81,8.17211735]
[1751313303600,8.17211735,157.86,157.81,14.508654]
[1751313303782,6.33458987,157.87,157.81,6.33653665]
[1751313304586,6.33352333,157.89,157.81,6.33653665]
[1751313305996,8.17211735,157.86,157.81,14.508654]
[1751313306609,6.33352333,157.89,157.83,6.33593106]
[1751313306909,8.17211735,157.87,157.82,14.50832822]
[1751313307291,8.17211735,157.86,157.82,6.33621087]
[1751313308317,8.17211735,157.83,157.77,14.51045797]
[1751313308612,8.17211735,157.83,157.78,8.17211735]
[1751313308787,8.17211735,157.83,157.79,6.33753723]
[1751313309309,8.17211735,157.84,157.79,14.50965458]
[1751313309708,8.17211735,157.84,157.8,0.42648471]
[1751313310582,8.17211735,157.85,157.8,8.59860206]
[1751313310991,8.17211735,157.85,157.81,6.33673404]
[1751313311693,8.17211735,157.84,157.8,6.7634687]
[1751313311889,8.17211735,157.84,157.8,6.62130713]
[1751313312217,8.17211735,157.83,157.8,6.62130713]
[1751313312425,8.17211735,157.84,157.8,6.62130713]
[1751313313907,6.33476051,157.86,157.8,6.62130713]
[1751313314113,8.17211735,157.85,157.81,8.17211735]
[1751313314595,8.17211735,157.85,157.8,6.62130713]
[1751313314925,8.17211735,157.85,157.8,14.79342448]
[1751313315211,8.17211735,157.85,157.8,40.79342448]
[1751313316317,7.67211735,157.85,157.8,32.62130713]
[1751313316619,8.17211735,157.84,157.8,32.62130713]
[1751313317335,8.17211735,157.84,157.8,40.79342448]
[1751313317718,8.17211735,157.84,157.8,32.62130713]
[1751313317903,8.17211735,157.84,157.8,40.79342448]
[1751313318104,8.17211735,157.85,157.8,40.79342448]
[1751313318812,8.17211735,157.86,157.81,8.31427892]
[1751313318997,8.17211735,157.87,157.82,8.45644049]
[1751313319198,8.17211735,157.88,157.83,8.17211735]
[1751313319409,8.17211735,157.88,157.84,7.12]
[1751313319916,8.17211735,157.87,157.84,13.45552765]
[1751313320497,12.7021846,157.9,157.84,21.627645]
[1751313320819,8.17211735,157.87,157.84,7.12]
[1751313321518,8.17211735,157.88,157.84,7.12]
[1751313322128,8.17211735,157.88,157.84,13.45551072]
[1751313322733,8.17211735,157.86,157.84,7.12]
[1751313322899,8.17211735,157.85,157.84,7.12]
[1751313325234,8.17211735,157.87,157.84,7.12]
[1751313326504,6.33352333,157.89,157.84,7.12]
[1751313326706,8.17211735,157.86,157.84,7.12]
[1751313326912,8.17211735,157.85,157.84,7.12]
[1751313327702,6.33352333,157.89,157.84,7.12]
[1751313327901,8.17211735,157.86,157.84,7.12]
[1751313329839,5.52283924,157.86,157.84,7.12]
[1751313332629,11.89176576,157.9,157.85,5.52283924]
[1751313332831,5.52283924,157.89,157.84,18.97826729]
[1751313334318,5.52283924,157.89,157.84,13.45542805]
[1751313334519,11.85636363,157.89,157.84,18.97826729]
[1751313334729,5.52283924,157.85,157.84,7.12]
[1751313334900,5.52283924,157.85,157.78,6.33778876]
[1751313335225,18.64964886,157.85,157.81,7.12]
[1751313335429,5.52283924,157.82,157.81,7.12]
[1751313339811,5.52283924,157.83,157.81,7.12]
[1751313340430,5.52283924,157.82,157.81,7.12]
[1751313342422,11.85917177,157.82,157.81,7.12]
[1751313345830,11.85917177,157.82,157.75,10.16820005]
[1751313345831,27.70000309,157.82,157.75,10.16820005]
[1751313346036,5.52283924,157.76,157.75,7.06]
[1751313347238,11.86158163,157.76,157.75,7.06]
[1751313349132,11.86158163,157.76,157.69,7.06]
[1751313349449,5.52283924,157.7,157.69,7.06]
[1751313350343,5.52283924,157.7,157.65,7.06]
[1751313350547,5.52283924,157.67,157.65,7.06]
[1751313350918,34.6761,157.75,157.65,18.92588467]
[1751313351144,5.52283924,157.71,157.66,5.52283924]
[1751313351335,5.52283924,157.7,157.65,18.92588467]
[1751313351540,5.52283924,157.69,157.65,13.40304543]
[1751313352650,52.5,157.75,157.66,0.28432314]
[1751313352852,6.36,157.83,157.74,5.52283924]
[1751313353145,5.52283924,157.79,157.75,7.06]
[1751313353327,5.52283924,157.8,157.75,12.58283924]
[1751313353528,5.52283924,157.78,157.75,7.06]
[1751313354037,6.33633253,157.82,157.75,7.06]
[1751313354339,11.85958036,157.81,157.76,5.52283924]
[1751313354921,5.52283924,157.81,157.76,11.86130934]
[1751313355326,6.33603025,157.83,157.77,5.52283924]
[1751313355549,5.52283924,157.82,157.77,5.52283924]
[1751313355737,5.52283924,157.82,157.76,6.3384701]
[1751313356041,8.18647265,157.82,157.77,8.18647265]
[1751313357047,8.18647265,157.82,157.77,14.52470923]
[1751313357243,14.52284225,157.82,157.77,14.52470923]
[1751313357546,14.52284225,157.82,157.77,8.18647265]
[1751313358622,14.52284225,157.82,157.75,7.06]
[1751313358623,8.18647265,157.81,157.75,7.06]
[1751313358824,8.18647265,157.79,157.75,7.06]
[1751313359046,22.17720092,157.82,157.75,7.06]
[1751313359252,8.18647265,157.77,157.73,7.06]
[1751313359923,8.18647265,157.78,157.73,15.24647265]
[1751313360131,48.17720092,157.82,157.74,8.18647265]
[1751313360333,8.18647265,157.79,157.74,8.18647265]
[1751313361157,14.52428022,157.79,157.74,8.18647265]
[1751313361362,8.18647265,157.78,157.73,21.58620062]
[1751313361529,8.18647265,157.78,157.73,15.24647265]
[1751313361732,18.64964886,157.78,157.73,7.06]
[1751313362069,8.18647265,157.74,157.73,7.06]
[1751313362973,58.87780757,157.79,157.73,7.06]
[1751313363130,8.18647265,157.78,157.73,15.24647265]
[1751313363639,8.18647265,157.77,157.73,13.39994795]
[1751313364247,14.52428022,157.79,157.74,8.18647265]
[1751313364643,8.18647265,157.78,157.74,8.18647265]
[1751313365030,8.18647265,157.79,157.74,14.52583751]
[1751313365756,6.33633253,157.82,157.76,8.18647265]
[1751313365961,14.52280518,157.82,157.77,8.18647265]
[1751313366331,8.18647265,157.81,157.76,8.18647265]
[1751313366549,8.18647265,157.8,157.75,8.18647265]
[1751313367345,8.18647265,157.8,157.75,14.52531794]
[1751313367540,32.33608875,157.83,157.78,8.18647265]
[1751313367834,40.5225614,157.83,157.78,8.18647265]
[1751313368052,40.5225614,157.83,157.77,14.53387265]
[1751313368053,8.18647265,157.82,157.77,14.53387265]
[1751313368258,8.18647265,157.81,157.77,6.3474]
[1751313368762,6.33552965,157.84,157.78,8.18647265]
[1751313368933,8.18647265,157.82,157.78,8.18647265]
[1751313369730,8.18647265,157.82,157.77,20.87185027]
[1751313370929,14.52285637,157.82,157.77,20.87185027]
[1751313371440,18.64964886,157.81,157.78,7.06]
[1751313371653,8.18647265,157.79,157.78,7.06]
[1751313371959,14.52400988,157.79,157.78,7.06]
[1751313372349,8.18647265,157.79,157.78,7.06]
[1751313372548,14.52400988,157.79,157.78,6.9959344]
[1751313374555,26.0,157.83,157.78,6.9959344]
[1751313374734,8.18647265,157.79,157.72,32.74312314]
[1751313374931,8.18647265,157.76,157.73,7.1]
[1751313375146,8.18647265,157.77,157.73,7.1]
[1751313376152,6.33713561,157.8,157.73,13.43977859]
[1751313376352,8.18647265,157.77,157.73,7.1]
[1751313376537,8.18647265,157.75,157.73,7.1]
[1751313376861,8.18647265,157.76,157.73,7.1]
[1751313377561,8.18647265,157.74,157.73,7.1]
[1751313379053,14.52601873,157.74,157.73,7.1]
[1751313379252,8.18647265,157.74,157.73,7.1]
[1751313380262,15.84492509,157.78,157.73,7.1]
[1751313380263,18.64964886,157.78,157.73,7.1]
[1751313380466,8.18647265,157.77,157.73,13.43991262]
[1751313380648,6.33797006,157.78,157.73,21.62638527]
[1751313380649,14.52444271,157.78,157.73,21.62638527]
[1751313380842,8.18647265,157.78,157.73,21.62638527]
[1751313381068,24.98735201,157.79,157.73,13.43991262]
[1751313381248,8.18647265,157.77,157.73,13.43991262]
[1751313381772,8.18647265,157.78,157.73,21.62638527]
[1751313382346,14.52441282,157.78,157.73,13.43991262]
[1751313382544,14.52441282,157.78,157.73,21.62638527]
[1751313383471,6.33713561,157.8,157.73,21.62638527]
[1751313383677,8.18647265,157.78,157.73,21.62638527]
[1751313385375,24.98675041,157.81,157.73,21.62638527]
[1751313385376,8.18647265,157.8,157.75,14.43427265]
[1751313385551,26.83612151,157.81,157.76,8.18647265]
[1751313385953,26.83612151,157.81,157.75,6.2478]
[1751313385954,33.17294509,157.81,157.75,6.2478]
[1751313386260,8.18647265,157.79,157.74,26.28432314]
[1751313386453,8.18647265,157.79,157.74,26.0]
[1751313386765,8.18647265,157.78,157.74,32.33945606]
[1751313387854,8.18647265,157.77,157.73,13.4397973]
[1751313388173,5.5286878,157.77,157.73,13.4397973]
[1751313388370,18.64964886,157.79,157.73,13.4397973]
[1751313388576,6.33713561,157.8,157.73,7.1]
[1751313388577,5.5286878,157.76,157.73,7.1]